bitfinex/quotes_SOLUSD_20250108
["timestamp","ask_amount","ask_price","bid_price","bid_amount"]
[1736334117677,2.18,197.49,197.42,34.3971355]
[1736334118842,2.18,197.49,197.41,11.82242041]
[1736334119036,2.18,197.49,197.42,9.86067591]
[1736334121979,20.0,197.45,197.38,7.92716272]
[1736334122336,2.18,197.49,197.41,9.86067591]
[1736334122541,2.18,197.49,197.42,9.86067591]
[1736334122764,20.0,197.48,197.41,10.62028475]
[1736334123584,20.0,197.48,197.41,0.75960884]
[1736334126665,20.0,197.48,197.4,24.53651913]
[1736334128362,20.0,197.48,197.4,36.35893954]
[1736334129443,20.0,197.48,197.4,35.59930441]
[1736334130053,7.8026,197.47,197.4,35.59930441]
[1736334130247,8.49173819,197.47,197.37,7.92716272]
[1736334130647,8.49173819,197.47,197.37,0.75978635]
[1736334130855,2.18,197.46,197.37,0.75978635]
[1736334133852,2.18,197.46,197.36,23.776884]
[1736334134483,2.18,197.46,197.35,35.59930441]
[1736334134854,2.18,197.46,197.36,0.75976854]
[1736334135375,2.18,197.46,197.35,11.82242041]
[1736334136053,2.18,197.46,197.35,35.59930441]
[1736334137174,2.18,197.46,197.35,36.35915078]
[1736334139780,20.0,197.44,197.35,36.35915078]
[1736334140455,20.0,197.43,197.35,36.35915078]
[1736334142878,18.3727082,197.46,197.35,36.35915078]
[1736334143091,18.3727082,197.46,197.35,46.21982669]
[1736334143372,2.18,197.45,197.38,23.776884]
[1736334143574,2.18,197.45,197.39,0.75967018]
[1736334143768,2.18,197.45,197.38,36.35898383]
[1736334144165,7.8026,197.47,197.38,36.35898383]
[1736334144368,2.18,197.46,197.38,36.35898383]
[1736334145081,2.18,197.45,197.38,36.35898383]
[1736334149599,7.8026,197.47,197.41,9.86067591]
[1736334149782,7.8026,197.47,197.42,0.75953443]
[1736334149981,9.9826,197.47,197.42,0.75953443]
[1736334150676,9.9826,197.47,197.41,23.776884]
[1736334152618,9.9826,197.47,197.38,11.82242041]
[1736334152784,9.9826,197.47,197.38,12.58211621]
[1736334153516,9.9826,197.47,197.4,9.86067591]
[1736334153696,9.9826,197.47,197.41,0.7595552]
[1736334155299,9.9826,197.47,197.41,12.58197561]
[1736334159105,9.9826,197.47,197.41,22.44265152]
[1736334159307,9.9826,197.47,197.41,12.58197561]
[1736334162305,7.8026,197.47,197.41,12.58197561]
[1736334162501,9.9826,197.47,197.41,12.58197561]
[1736334162808,2.18,197.47,197.42,45.45998032]
[1736334162984,2.18,197.47,197.43,0.75949995]
[1736334163183,7.6152,197.52,197.44,23.776884]
[1736334163380,7.6152,197.52,197.45,0.75946322]
[1736334163611,2.18,197.51,197.45,0.75946322]
[1736334164114,7.6152,197.52,197.45,0.75946322]
[1736334164292,2.18,197.51,197.45,0.75946322]
[1736334164985,2.18,197.5,197.45,0.75946322]
[1736334167315,2.18,197.5,197.45,12.58188363]
[1736334167718,7.6152,197.52,197.45,12.58188363]
[1736334167890,2.18,197.51,197.45,12.58188363]
[1736334168311,7.6152,197.52,197.46,23.776884]
[1736334168610,9.7952,197.52,197.47,0.7593493]
[1736334168813,9.7952,197.52,197.46,36.35865371]
[1736334172628,0.46356893,197.54,197.46,36.35865371]
[1736334172629,20.46356893,197.54,197.47,9.86067591]
[1736334172913,20.46356893,197.54,197.48,24.53611891]
[1736334173717,20.46356893,197.54,197.48,23.776884]
[1736334173900,20.46356893,197.54,197.46,36.3585702]
[1736334174513,20.46356893,197.54,197.47,23.776884]
[1736334175637,20.46356893,197.54,197.46,12.5816862]
[1736334176303,20.46356893,197.54,197.47,23.776884]
[1736334178702,20.46356893,197.54,197.46,22.44236211]
[1736334179028,20.46356893,197.54,197.47,23.776884]
[1736334182226,20.46356893,197.54,197.47,35.59930441]
[1736334182611,6.6396,197.52,197.44,11.82242041]
[1736334183804,2.18,197.51,197.44,11.82242041]
[1736334195942,2.18,197.51,197.45,24.53639496]
[1736334196138,6.6396,197.52,197.45,24.53639496]
[1736334196440,2.18,197.51,197.45,24.53639496]
[1736334198540,2.18,197.51,197.45,34.39707087]
[1736334199944,3.8394,197.53,197.45,34.39707087]
[1736334200246,3.8394,197.53,197.45,46.21949128]
[1736334204239,1.5674,197.6,197.49,23.776884]
[1736334204537,1.5674,197.6,197.53,33.63755991]
[1736334204741,6.2101,197.62,197.55,23.776884]
[1736334207519,6.2101,197.62,197.55,33.63755991]
[1736334207721,1.5143,197.71,197.62,23.776884]
[1736334208037,1.5143,197.71,197.63,137.1]
[1736334208744,20.0,197.69,197.62,9.86067591]
[1736334209045,6.2033,197.62,197.54,7.92716272]
[1736334209248,2.2,197.61,197.54,17.78783863]
[1736334209436,2.2,197.61,197.55,9.86067591]
[1736334210033,6.2033,197.62,197.55,9.86067591]
[1736334210243,8.4033,197.62,197.56,9.86067591]
[1736334212733,8.4033,197.62,197.57,9.86067591]
[1736334213333,6.2033,197.62,197.59,9.86067591]
[1736334213537,1.5143,197.63,197.61,9.86067591]
[1736334213744,2.2,197.66,197.61,9.86067591]
[1736334213949,2.2,197.66,197.62,9.86067591]
[1736334214438,6.3541,197.67,197.62,9.86067591]
[1736334216653,6.3541,197.67,197.63,9.86067591]
[1736334220348,6.3541,197.67,197.64,9.86067591]
[1736334220555,6.3541,197.67,197.65,9.86067591]
[1736334222158,2.18,197.7,197.65,9.86067591]
[1736334228946,2.18,197.7,197.67,9.86067591]
[1736334229457,6.2601,197.72,197.68,9.86067591]
[1736334230148,6.2601,197.72,197.67,9.86067591]
[1736334230364,20.0,197.69,197.64,11.82242041]
[1736334232881,19.0,197.69,197.64,11.82242041]
[1736334233165,19.0,197.69,197.62,9.86067591]
[1736334237970,19.0,197.69,197.61,9.86067591]
[1736334239466,19.0,197.69,197.59,0.75885897]
[1736334239674,20.0,197.67,197.58,9.86067591]
[1736334239846,8.2548,197.66,197.57,21.68309632]
[1736334240462,8.2548,197.66,197.57,11.82242041]
[1736334241052,8.2548,197.66,197.57,21.68309632]
[1736334244182,2.18,197.65,197.59,9.86067591]
[1736334244354,8.2548,197.66,197.62,9.86067591]
[1736334244556,2.18,197.66,197.62,9.86067591]
[1736334245261,3.8421,197.68,197.63,9.86067591]
[1736334245462,2.18,197.68,197.63,9.86067591]
[1736334245668,2.18,197.68,197.65,9.86067591]
[1736334245874,2.18,197.7,197.65,9.86067591]
[1736334246072,6.1007,197.71,197.65,9.86067591]
[1736334246278,1.514,197.73,197.65,9.86067591]
[1736334246279,2.18,197.72,197.65,9.86067591]
[1736334246661,2.18,197.72,197.66,9.86067591]
[1736334247760,2.18,197.71,197.66,9.86067591]
[1736334248462,2.18,197.71,197.65,33.63755991]
[1736334248659,2.18,197.71,197.66,0.75863553]
[1736334249072,6.4872,197.76,197.67,33.63755991]
[1736334249270,2.18,197.75,197.68,9.86067591]
[1736334249468,2.18,197.75,197.68,10.61921891]
[1736334250286,1.5021,197.78,197.74,9.86067591]
[1736334250604,6.0574,197.81,197.75,9.86067591]
[1736334250771,6.0574,197.81,197.74,0.75838926]
[1736334250772,6.0574,197.81,197.74,10.61906517]
[1736334251172,6.0574,197.81,197.75,33.63755991]
[1736334251382,6.0574,197.81,197.76,9.86067591]
[1736334253488,20.0,197.86,197.77,34.39584588]
[1736334253790,20.0,197.86,197.77,9.86067591]
[1736334254096,10.0313,197.89,197.8,9.86067591]
[1736334254275,10.0313,197.89,197.77,0.75814571]
[1736334254276,20.0,197.86,197.81,9.86067591]
[1736334254476,10.0313,197.89,197.8,9.86067591]
[1736334254894,10.0313,197.89,197.73,1.5861]
[1736334255195,20.0,197.86,197.76,9.86067591]
[1736334256983,20.0,197.86,197.75,9.86067591]
[1736334257697,20.0,197.86,197.74,33.63755991]
[1736334257912,19.7264123,197.86,197.75,9.86067591]
[1736334258900,16.1927082,197.88,197.74,24.53518846]
[1736334259095,16.1927082,197.87,197.74,9.86067591]
[1736334259308,10.0313,197.89,197.71,11.82242041]
[1736334259309,16.1927082,197.84,197.71,11.82242041]
[1736334259502,6.5922,197.81,197.71,11.82242041]
[1736334259685,2.2,197.8,197.71,11.82242041]
[1736334260007,6.5922,197.81,197.72,9.86067591]
[1736334260008,20.0,197.78,197.72,9.86067591]
[1736334260214,2.2,197.79,197.74,9.86067591]
[1736334260512,2.2,197.79,197.73,9.86067591]
[1736334261102,6.5922,197.81,197.73,9.86067591]
[1736334261302,6.5922,197.81,197.74,9.86067591]
[1736334261303,2.2,197.8,197.74,9.86067591]
[1736334261682,2.2,197.8,197.74,10.61898488]
[1736334261882,2.2,197.8,197.74,0.75830897]
[1736334262082,2.2,197.8,197.73,10.61898493]
[1736334262724,2.2,197.8,197.73,0.75830902]
[1736334262886,2.2,197.8,197.71,11.82242041]
[1736334263092,2.2,197.8,197.71,12.58088037]
[1736334263293,2.2,197.8,197.71,22.44155628]
[1736334264211,20.0,197.78,197.71,22.44155628]
[1736334265287,20.0,197.78,197.71,11.82242041]
[1736334268204,8.8122,197.81,197.74,9.86067591]
[1736334269705,8.8122,197.81,197.72,9.86067591]
[1736334270112,8.8122,197.81,197.7,0.75840616]
[1736334270316,20.0,197.78,197.7,9.86067591]
[1736334270510,20.0,197.78,197.7,10.61919584]
[1736334271316,20.0,197.78,197.7,0.75851993]
[1736334274322,20.0,197.78,197.69,148.92242041]
[1736334274524,20.0,197.77,197.63,13.32572041]
[1736334274825,20.0,197.77,197.67,21.68309632]
[1736334275029,20.0,197.77,197.68,0.7585478]
[1736334275598,20.0,197.77,197.67,11.82242041]
[1736334275599,1.6207,197.76,197.67,11.82242041]
[1736334278115,21.6207,197.76,197.67,11.82242041]
[1736334278520,6.6333,197.75,197.67,11.82242041]
[1736334278712,2.2,197.74,197.67,11.82242041]
[1736334279525,20.0,197.72,197.58,158.35338313]
[1736334279707,20.0,197.72,197.6,9.86067591]
[1736334279910,20.0,197.72,197.61,0.75883306]
[1736334280111,20.0,197.72,197.61,10.61950897]
[1736334280718,20.0,197.72,197.62,9.86067591]
[1736334280923,20.0,197.72,197.62,10.61947544]
[1736334281927,20.0,197.72,197.62,9.86067591]
[1736334283210,2.2,197.72,197.67,9.86067591]
[1736334283411,2.2,197.72,197.67,10.61925779]
[1736334283821,2.2,197.72,197.68,9.86067591]
[1736334284032,2.2,197.72,197.67,10.61925779]
[1736334285310,2.2,197.72,197.66,9.86067591]
[1736334287532,6.6333,197.75,197.66,9.86067591]
[1736334287729,2.2,197.74,197.66,9.86067591]
[1736334290013,2.2,197.74,197.67,0.75861597]
[1736334291229,6.6333,197.75,197.67,10.61929188]
[1736334291426,2.2,197.74,197.67,9.86067591]
[1736334291640,2.2,197.74,197.65,0.75859597]
[1736334291641,2.2,197.74,197.66,9.86067591]
[1736334292020,20.0,197.72,197.65,0.75859597]
[1736334292340,20.0,197.72,197.64,11.82242041]
[1736334292637,20.0,197.7,197.62,9.86067591]
[1736334292845,20.0,197.7,197.59,0.75883974]
[1736334293025,1.637,197.69,197.61,9.86067591]
[1736334293225,1.637,197.69,197.62,9.86067591]
[1736334294020,1.637,197.69,197.61,9.86067591]
[1736334294226,1.637,197.69,197.63,9.86067591]
[1736334296035,2.2,197.68,197.63,9.86067591]
[1736334296243,2.2,197.67,197.63,9.86067591]
[1736334298524,2.2,197.67,197.62,10.61945784]
[1736334303147,2.2,197.67,197.59,0.75878793]
[1736334303450,2.2,197.67,197.6,9.86067591]
[1736334304331,2.2,197.67,197.61,9.86067591]
[1736334305550,2.2,197.67,197.6,21.68309632]
[1736334307051,2.2,197.67,197.61,9.86067591]
[1736334307952,2.2,197.67,197.62,9.86067591]
[1736334318366,2.18,197.67,197.63,10.61953364]
[1736334318660,1.5182,197.75,197.66,9.86067591]
[1736334318843,2.18,197.74,197.7,9.86067591]
[1736334319731,2.18,197.74,197.69,9.86067591]
[1736334319962,2.18,197.74,197.67,12.58099422]
[1736334319963,2.18,197.74,197.68,9.86067591]
[1736334325037,1.5182,197.75,197.68,9.86067591]
[1736334325238,2.2,197.74,197.67,21.68309632]
[1736334327042,1.5085,197.8,197.72,9.86067591]
[1736334327268,1.5085,197.8,197.73,9.86067591]
[1736334327648,20.0,197.79,197.72,9.86067591]
[1736334332567,20.0,197.79,197.68,148.92242041]
[1736334332866,20.0,197.79,197.7,9.86067591]
[1736334333066,20.0,197.79,197.7,10.61915594]
[1736334333766,20.0,197.79,197.7,0.75848003]
[1736334333969,20.0,197.79,197.68,148.92242041]
[1736334334879,20.0,197.75,197.68,11.82242041]
[1736334335181,2.18,197.74,197.68,11.82242041]
[1736334338065,21.5119,197.73,197.62,7.92716272]
[1736334338372,21.5119,197.73,197.62,17.78783863]
[1736334338749,21.5119,197.73,197.63,9.86067591]
[1736334339356,21.5119,197.73,197.64,9.86067591]
[1736334339557,21.5119,197.73,197.63,9.86067591]
[1736334341554,20.0,197.69,197.62,9.86067591]
[1736334343280,20.0,197.69,197.61,9.86067591]
[1736334344173,20.0,197.69,197.6,22.44195265]
[1736334344358,20.0,197.69,197.6,21.68309632]
[1736334345382,20.0,197.69,197.6,22.44198164]
[1736334347258,20.0,197.69,197.6,21.68309632]
[1736334347558,20.0,197.69,197.61,9.86067591]
[1736334349774,20.0,197.69,197.59,9.86067591]
[1736334350167,1.5789,197.68,197.59,9.86067591]
[1736334350356,2.18,197.67,197.57,0.75892348]
[1736334350978,2.18,197.67,197.59,9.86067591]
[1736334351188,6.6206,197.66,197.56,0.75903045]
[1736334351667,6.6206,197.66,197.57,9.86067591]
[1736334353478,6.6206,197.66,197.58,9.86067591]
[1736334360184,6.6206,197.66,197.57,9.86067591]
[1736334361874,6.6206,197.66,197.56,9.86067591]
[1736334362082,6.6206,197.66,197.55,22.44213717]
[1736334362268,6.6206,197.66,197.56,9.86067591]
[1736334362468,20.0,197.63,197.55,11.82242041]
[1736334362768,21.6043,197.62,197.54,9.86067591]
[1736334363470,21.6043,197.62,197.56,9.86067591]
[1736334364181,21.6043,197.62,197.55,0.75913571]
[1736334364387,21.6043,197.62,197.56,9.86067591]
[1736334364567,2.18,197.61,197.56,9.86067591]
[1736334365893,2.18,197.61,197.57,9.86067591]
[1736334366213,2.18,197.63,197.59,9.86067591]
[1736334367371,2.18,197.63,197.6,9.86067591]
[1736334367573,6.6206,197.66,197.6,9.86067591]
[1736334367892,2.18,197.64,197.59,9.86067591]
[1736334368081,2.18,197.64,197.58,21.68309632]
[1736334368480,2.18,197.64,197.58,11.82242041]
[1736334368887,2.18,197.64,197.58,21.68309632]
[1736334369490,20.0,197.63,197.58,11.82242041]
[1736334370189,20.0,197.62,197.55,9.86067591]
[1736334371165,20.0,197.62,197.58,9.86067591]
[1736334371397,16.1927082,197.65,197.59,9.86067591]
[1736334371570,16.1927082,197.65,197.6,9.86067591]
[1736334372191,6.6206,197.66,197.61,9.86067591]
[1736334372369,1.5559,197.67,197.61,9.86067591]
[1736334372370,1.5559,197.67,197.62,9.86067591]
[1736334373196,1.5559,197.67,197.61,10.61952432]
[1736334375078,1.5559,197.67,197.61,9.86067591]
[1736334375410,1.5559,197.67,197.6,9.86067591]
[1736334376204,1.5559,197.67,197.62,9.86067591]
[1736334376803,1.5559,197.67,197.61,22.44195722]
[1736334377007,1.5559,197.67,197.61,11.82242041]
[1736334377205,1.5559,197.67,197.58,0.75882681]
[1736334377206,21.5559,197.67,197.57,11.82242041]
[1736334377512,21.5559,197.67,197.57,21.68309632]
[1736334378169,6.0863,197.66,197.57,21.68309632]
[1736334378499,20.0,197.63,197.57,11.82242041]
[1736334378702,20.0,197.63,197.57,21.68309632]
[1736334379416,20.0,197.63,197.57,11.82242041]
[1736334380212,20.0,197.63,197.55,9.86067591]
[1736334380691,20.0,197.62,197.55,9.86067591]
[1736334382190,20.0,197.62,197.56,9.86067591]
[1736334383619,2.2,197.64,197.56,9.86067591]
[1736334384115,2.2,197.64,197.57,0.75899326]
[1736334384291,2.2,197.64,197.56,9.86067591]
[1736334385534,20.0,197.62,197.55,9.86067591]
[1736334386019,20.0,197.62,197.55,21.68309632]
[1736334388513,20.0,197.62,197.55,11.82242041]
[1736334390024,1.6001,197.61,197.55,11.82242041]
[1736334391825,20.0,197.6,197.51,7.92716272]
[1736334392008,26.5337,197.6,197.51,7.92716272]
[1736334392202,42.7264082,197.6,197.51,7.92716272]
[1736334392402,42.7264082,197.6,197.49,37.53742177]
[1736334392403,42.7264082,197.6,197.5,7.92716272]
[1736334392925,1.5125,197.55,197.5,7.92716272]
[1736334393225,2.2,197.54,197.5,7.92716272]
[1736334393627,6.1312,197.53,197.5,7.92716272]
[1736334393824,6.1312,197.53,197.48,7.92716272]
[1736334394209,20.0,197.5,197.48,7.92716272]
[1736334394616,20.0,197.5,197.45,7.92716272]
[1736334395313,20.0,197.5,197.44,17.78783863]
[1736334395807,20.0,197.5,197.44,9.86067591]
[1736334397727,2.22,197.49,197.44,9.86067591]
[1736334397911,2.22,197.49,197.43,7.92716272]
[1736334398231,20.0,197.5,197.43,7.92716272]
[1736334398232,20.0,197.5,197.43,9.86067591]
[1736334398437,2.22,197.49,197.43,9.86067591]
[1736334399715,1.5878,197.48,197.42,9.86067591]
[1736334400028,1.5878,197.48,197.41,9.86067591]
[1736334400235,1.5878,197.48,197.42,9.86067591]
[1736334401541,2.2,197.47,197.43,9.86067591]
[1736334402538,2.2,197.47,197.42,9.86067591]
[1736334404839,1.5878,197.48,197.42,9.86067591]
[1736334405032,2.2,197.46,197.42,9.86067591]
[1736334405563,2.2,197.46,197.41,9.86067591]
[1736334405837,2.2,197.46,197.39,22.44270987]
[1736334406242,2.2,197.46,197.4,9.86067591]
[1736334408650,8.8389,197.46,197.4,9.86067591]
[1736334408939,8.8389,197.46,197.39,9.86067591]
[1736334409319,8.8389,197.46,197.36,20.0]
[1736334409520,8.8389,197.46,197.37,9.86067591]
[1736334409739,6.6389,197.46,197.37,9.86067591]
[1736334409938,2.2,197.45,197.38,9.86067591]
[1736334410345,2.2,197.45,197.39,9.86067591]
[1736334411429,2.2,197.45,197.38,9.86067591]
[1736334412218,20.0,197.43,197.37,9.86067591]
[1736334412545,20.0,197.43,197.36,9.86067591]
[1736334414048,20.0,197.43,197.34,0.75985589]
[1736334414237,18.3927082,197.45,197.33,11.82242041]
[1736334414238,7.9628,197.41,197.33,11.82242041]
[1736334414628,7.9628,197.41,197.34,9.86067591]
[1736334414831,7.9628,197.41,197.35,9.86067591]
[1736334415561,7.9628,197.41,197.34,9.86067591]
[1736334419258,7.9628,197.41,197.36,9.86067591]
[1736334419557,2.22,197.4,197.35,11.82242041]
[1736334419857,2.22,197.4,197.35,21.68309632]
[1736334421322,2.22,197.4,197.36,8.36067591]
[1736334421527,1.5181,197.41,197.38,9.86067591]
[1736334421840,2.22,197.42,197.38,9.86067591]
[1736334422042,2.22,197.42,197.37,9.86067591]
[1736334427563,2.22,197.42,197.36,9.86067591]
[1736334427939,22.22,197.42,197.35,21.68309632]
[1736334428148,22.22,197.42,197.35,11.82242041]
[1736334434856,22.22,197.42,197.35,21.68309632]
[1736334435581,22.22,197.42,197.35,11.82242041]
[1736334448479,2.2,197.44,197.37,9.86067591]
[1736334448853,1.5348,197.45,197.37,9.86067591]
[1736334449154,2.2,197.44,197.36,22.44299764]
[1736334449778,20.0,197.43,197.36,11.82242041]
[1736334451857,20.0,197.42,197.32,22.44288136]
[1736334452265,20.0,197.42,197.32,12.58220545]
[1736334452461,6.2818,197.41,197.32,11.82242041]
[1736334452684,1.5623,197.4,197.32,11.82242041]
[1736334456885,1.5623,197.4,197.3,17.78783863]
[1736334457402,1.5623,197.4,197.31,9.86067591]
[1736334457579,1.5623,197.4,197.3,17.78783863]
[1736334459686,1.5623,197.4,197.31,7.92716272]
[1736334460389,1.5623,197.4,197.3,9.86067591]
[1736334460883,1.5623,197.4,197.31,9.86067591]
[1736334461086,1.5623,197.4,197.33,9.86067591]
[1736334461262,2.2,197.39,197.35,9.86067591]
[1736334463684,2.2,197.39,197.34,10.62055489]
[1736334465589,1.5623,197.4,197.34,10.62055489]
[1736334465788,3.7623,197.4,197.34,10.62055489]
[1736334466398,3.7623,197.4,197.34,18.54771761]
[1736334466589,2.2,197.4,197.36,10.0]
[1736334466789,2.2,197.42,197.36,10.0]
[1736334466985,2.2,197.42,197.36,5.0]
[1736334467292,2.2,197.42,197.36,10.0]
[1736334469284,22.2,197.42,197.36,10.0]
[1736334469891,22.2,197.42,197.36,5.0]
[1736334470095,22.2,197.42,197.36,10.0]
[1736334472208,2.2,197.42,197.39,5.0]
[1736334472377,2.2,197.43,197.4,5.0]
[1736334472777,3.8335,197.44,197.4,5.0]
[1736334474394,3.8335,197.44,197.38,10.0]
[1736334474596,3.8335,197.44,197.38,5.0]
[1736334474976,3.8335,197.44,197.38,10.0]
[1736334475301,3.8335,197.44,197.39,5.0]
[1736334475701,3.8335,197.44,197.39,10.0]
[1736334475887,2.2,197.43,197.39,10.0]
[1736334479405,2.2,197.43,197.4,5.0]
[1736334485185,2.18,197.44,197.42,5.0]
[1736334485389,2.18,197.44,197.43,5.0]
[1736334487209,2.18,197.44,197.42,5.0]
[1736334487507,2.18,197.44,197.43,5.0]
[1736334488405,82.3,197.48,197.43,5.0]
[1736334488591,2.18,197.46,197.42,5.0]
[1736334488792,2.18,197.46,197.4,10.0]
[1736334489009,20.0,197.45,197.4,5.0]
[1736334489714,20.0,197.45,197.39,10.0]
[1736334490291,20.0,197.45,197.39,5.0]
[1736334490495,20.0,197.45,197.39,10.0]
[1736334490886,20.0,197.45,197.37,11.82242041]
[1736334490887,20.0,197.45,197.41,5.0]
[1736334491106,20.0,197.45,197.39,10.0]
[1736334491515,20.0,197.45,197.39,5.0]
[1736334492413,20.0,197.45,197.38,10.0]
[1736334493003,20.0,197.45,197.38,5.0]
[1736334494226,20.0,197.45,197.38,10.0]
[1736334494393,20.0,197.45,197.39,10.0]
[1736334494593,20.0,197.45,197.39,5.0]
[1736334494887,20.0,197.43,197.37,10.0]
[1736334495110,20.0,197.42,197.36,5.0]
[1736334497996,21.661,197.42,197.36,5.0]
[1736334501419,20.0,197.4,197.36,5.0]
[1736334501599,2.18,197.39,197.36,5.0]
[1736334506523,2.18,197.39,197.35,5.0]
[1736334506725,2.18,197.39,197.36,5.0]
[1736334511524,1.6800759,197.39,197.36,5.0]
[1736334519534,20.0,197.38,197.32,10.0]
[1736334519718,20.0,197.38,197.32,5.0]
[1736334519917,20.0,197.38,197.33,5.0]
[1736334520253,20.0,197.38,197.32,10.0]
[1736334521134,20.0,197.38,197.31,5.0]
[1736334521342,20.0,197.38,197.33,5.0]
[1736334524942,20.0,197.38,197.32,10.0]
[1736334526943,20.0,197.37,197.3,5.0]
[1736334527142,20.0,197.35,197.31,5.0]
[1736334529837,22.18,197.29,197.23,5.0]
[1736334530045,22.18,197.29,197.22,5.0]
[1736334530845,20.0,197.28,197.21,21.82242041]
[1736334532738,102.3,197.27,197.19,5.0]
[1736334534331,102.3,197.27,197.19,10.0]
[1736334537474,102.3,197.27,197.21,5.0]
[1736334540534,102.3,197.27,197.19,10.0]
[1736334540734,102.3,197.27,197.19,5.0]
[1736334540950,102.3,197.27,197.21,5.0]
[1736334541151,102.3,197.27,197.19,5.0]
[1736334542159,102.3,197.27,197.19,10.0]
[1736334542859,102.3,197.27,197.19,5.0]
[1736334543177,102.3,197.27,197.19,10.0]
[1736334543348,102.3,197.27,197.21,5.0]
[1736334543961,102.3,197.27,197.19,10.0]
[1736334544457,102.3,197.27,197.21,5.0]
[1736334545743,102.3,197.27,197.19,10.0]
[1736334546874,102.3,197.27,197.17,10.0]
[1736334547168,102.3,197.27,197.18,10.0]
[1736334547341,20.0,197.23,197.15,10.0]
[1736334547542,22.18,197.22,197.16,5.0]
[1736334547871,22.18,197.22,197.14,10.0]
[1736334548751,20.0,197.21,197.14,3.5]
[1736334548951,20.0,197.21,197.14,8.5]
[1736334549181,21.5066,197.21,197.13,3.5]
[1736334549360,2.18,197.2,197.13,3.5]
[1736334550573,2.18,197.19,197.13,3.5]
[1736334551546,21.5066,197.21,197.13,8.5]
[1736334551759,2.18,197.2,197.13,8.5]
[1736334555071,4.66184624,197.2,197.13,8.5]
[1736334555542,4.66184624,197.2,197.13,5.0]
[1736334557074,4.66184624,197.2,197.12,8.5]
[1736334557248,4.66184624,197.2,197.13,5.0]
[1736334557570,4.66184624,197.2,197.12,5.0]
[1736334557963,4.66184624,197.2,197.13,5.0]
[1736334558563,20.0,197.17,197.13,5.0]
[1736334560678,20.0,197.17,197.12,8.5]
[1736334561672,20.0,197.18,197.12,8.5]
[1736334562068,20.0,197.17,197.12,8.5]
[1736334562574,20.0,197.18,197.12,8.5]
[1736334566903,20.0,197.18,197.13,5.0]
[1736334567056,20.0,197.18,197.12,8.5]
[1736334568983,2.18,197.17,197.12,8.5]
[1736334569791,2.18,197.17,197.12,3.5]
[1736334571389,2.18,197.17,197.13,5.0]
[1736334573383,2.18,197.17,197.08,13.36552041]
[1736334573384,2.18,197.17,197.1,8.5]
[1736334573562,20.0,197.16,197.09,8.5]
[1736334573766,20.0,197.15,197.08,16.82242041]
[1736334573968,20.0,197.15,197.08,5.0]
[1736334574297,20.0,197.15,197.09,5.0]
[1736334575279,20.0,197.15,197.08,3.5]
[1736334575480,20.0,197.15,197.06,8.5]
[1736334575792,20.0,197.15,197.07,3.5]
[1736334576010,82.3,197.19,197.12,8.5]
[1736334576173,2.18,197.14,197.12,8.5]
[1736334578213,2.18,197.14,197.13,3.5]
[1736334578488,2.18,197.2,197.17,3.5]
[1736334578707,4.19432789,197.24,197.18,8.5]
[1736334578708,2.3541338,197.24,197.18,8.5]
[1736334578905,2.18,197.21,197.18,8.5]
[1736334579470,1.5536,197.26,197.18,8.5]
[1736334579673,2.18,197.21,197.18,8.5]
[1736334584699,2.18,197.21,197.18,5.0]
[1736334584875,2.18,197.21,197.18,4.0]
[1736334586371,2.18,197.21,197.18,7.5]